[Event "Titled Tuesday Blitz January 31 Late 2023"]
[White "Figorito, Nick"]
[Black "Curtis, John"]
[WhiteFideId "30923689"]
[BlackFideId "3200256"]
[WhiteElo "2036"]
[BlackElo "2292"]
[Result "1/2-1/2"]
[Round "06"]
[TimeControl "180+2"]
[Date "2023.01.31"]
[WhiteClock "0:00:18"]
[BlackClock "0:01:06"]

1. Nf3 {[%clk 0:03:00]}  d5 {[%clk 0:02:59]} 2. g3 {[%clk 0:03:01]}  c6 {[%clk 0:02:59]} 3. Bg2 {[%clk 0:03:02]}  h6 {[%clk 0:03:00]} 4. O-O {[%clk 0:03:02]}  Bf5 {[%clk 0:03:00]} 5. c4 {[%clk 0:03:02]}  e6 {[%clk 0:03:00]} 6. Qb3 {[%clk 0:03:02]}  Qb6 {[%clk 0:02:59]} 7. d4 {[%clk 0:03:02]}  dxc4 {[%clk 0:02:57]} 8. Qxc4 {[%clk 0:03:01]}  Qb4 {[%clk 0:02:37]} 9. Qxb4 {[%clk 0:02:57]}  Bxb4 {[%clk 0:02:37]} 10. a3 {[%clk 0:02:54]}  Be7 {[%clk 0:02:34]} 11. Nc3 {[%clk 0:02:53]}  Nf6 {[%clk 0:02:34]} 12. Re1 {[%clk 0:02:50]}  Ne4 {[%clk 0:02:33]} 13. Nxe4 {[%clk 0:02:49]}  Bxe4 {[%clk 0:02:33]} 14. Ne5 {[%clk 0:02:45]}  Bxg2 {[%clk 0:02:33]} 15. Kxg2 {[%clk 0:02:46]}  Nd7 {[%clk 0:02:33]} 16. Nxd7 {[%clk 0:02:43]}  Kxd7 {[%clk 0:02:33]} 17. Bd2 {[%clk 0:02:38]}  Rhd8 {[%clk 0:02:33]} 18. Bc3 {[%clk 0:02:37]}  Ke8 {[%clk 0:02:32]} 19. d5 {[%clk 0:02:34]}  Rxd5 {[%clk 0:02:29]} 20. Bxg7 {[%clk 0:02:34]}  h5 {[%clk 0:02:29]} 21. Bc3 {[%clk 0:02:27]}  Rad8 {[%clk 0:02:26]} 22. e4 {[%clk 0:02:25]}  Rd3 {[%clk 0:02:25]} 23. h4 {[%clk 0:02:13]}  R8d7 {[%clk 0:02:23]} 24. Kf1 {[%clk 0:02:12]}  a6 {[%clk 0:02:06]} 25. Ke2 {[%clk 0:02:12]}  f5 {[%clk 0:01:40]} 26. exf5 {[%clk 0:02:06]}  exf5 {[%clk 0:01:40]} 27. Kf1 {[%clk 0:02:01]}  Kf7 {[%clk 0:01:36]} 28. Re5 {[%clk 0:01:57]}  R7d5 {[%clk 0:01:36]} 29. Rae1 {[%clk 0:01:53]}  Bxa3 {[%clk 0:01:31]} 30. bxa3 {[%clk 0:01:41]}  Rxc3 {[%clk 0:01:29]} 31. Re7+ {[%clk 0:01:41]}  Kf8 {[%clk 0:01:26]} 32. Rxb7 {[%clk 0:01:24]}  f4 {[%clk 0:01:27]} 33. Re6 {[%clk 0:01:15]}  f3 {[%clk 0:01:25]} 34. Rf6+ {[%clk 0:01:15]}  Ke8 {[%clk 0:01:24]} 35. Kg1 {[%clk 0:00:49]}  Rd7 {[%clk 0:01:23]} 36. Rb6 {[%clk 0:00:32]}  Rd1+ {[%clk 0:01:19]} 37. Kh2 {[%clk 0:00:32]}  Rcc1 {[%clk 0:01:20]} 38. g4 {[%clk 0:00:31]}  Rh1+ {[%clk 0:01:16]} 39. Kg3 {[%clk 0:00:31]}  Rhg1+ {[%clk 0:01:14]} 40. Kxf3 {[%clk 0:00:30]}  hxg4+ {[%clk 0:01:15]} 41. Kf4 {[%clk 0:00:29]}  Ke7 {[%clk 0:01:14]} 42. Rfxc6 {[%clk 0:00:29]}  Rxc6 {[%clk 0:01:12]} 43. Rxc6 {[%clk 0:00:30]}  a5 {[%clk 0:01:13]} 44. Rg6 {[%clk 0:00:29]}  Rg2 {[%clk 0:01:12]} 45. Rxg4 {[%clk 0:00:26]}  Rxf2+ {[%clk 0:01:12]} 46. Kg5 {[%clk 0:00:26]}  Ke6 {[%clk 0:01:08]} 47. a4 {[%clk 0:00:24]}  Rf5+ {[%clk 0:01:07]} 48. Kg6 {[%clk 0:00:24]}  Rf6+ {[%clk 0:01:06]} 49. Kg7 {[%clk 0:00:25]}  Rf1 {[%clk 0:01:06]} 50. Rg6+ {[%clk 0:00:22]}  Ke7 {[%clk 0:01:06]} 51. Rg5 {[%clk 0:00:21]}  Rf4 {[%clk 0:01:05]} 52. Re5+ {[%clk 0:00:19]}  Kd6 {[%clk 0:01:05]} 53. Rxa5 {[%clk 0:00:19]}  Rxh4 {[%clk 0:01:05]} 54. Kg6 {[%clk 0:00:19]}  Kc6 {[%clk 0:01:06]} 55. Kg5 {[%clk 0:00:19]}  Re4 {[%clk 0:01:04]} 56. Ra8 {[%clk 0:00:18]}  Re1 {[%clk 0:01:04]} 57. Kf5 {[%clk 0:00:18]}  Kb7 {[%clk 0:01:04]} 58. Ra5 {[%clk 0:00:18]}  Kb6 {[%clk 0:01:04]} 59. Rb5+ {[%clk 0:00:19]}  Ka6 {[%clk 0:01:05]} 60. Re5 {[%clk 0:00:16]}  Rxe5+ {[%clk 0:01:04]} 61. Kxe5 {[%clk 0:00:17]}  Ka5 {[%clk 0:01:05]} 62. Kd4 {[%clk 0:00:18]}  Kxa4 {[%clk 0:01:06]} 1/2-1/2


[Site "https://www.chess.com"]

[Event "Titled Tuesday Blitz January 31 Late 2023"]
[White "Zhou, Qiyu"]
[Black "Sanchez, Sebastian Felipe"]
[WhiteFideId "505161"]
[BlackFideId "4403304"]
[WhiteElo "2201"]
[BlackElo "2427"]
[Result "0-1"]
[Round "06"]
[TimeControl "180+2"]
[Date "2023.01.31"]
[WhiteClock "0:00:50"]
[BlackClock "0:00:43"]

1. e4 {[%clk 0:03:00]}  e6 {[%clk 0:02:56]} 2. d4 {[%clk 0:03:01]}  d5 {[%clk 0:02:56]} 3. Nc3 {[%clk 0:03:01]}  Nf6 {[%clk 0:02:56]} 4. Bg5 {[%clk 0:03:01]}  Bb4 {[%clk 0:02:55]} 5. e5 {[%clk 0:03:01]}  h6 {[%clk 0:02:55]} 6. Bh4 {[%clk 0:03:01]}  g5 {[%clk 0:02:52]} 7. Bg3 {[%clk 0:03:02]}  Ne4 {[%clk 0:02:52]} 8. Ne2 {[%clk 0:03:00]}  c5 {[%clk 0:02:49]} 9. a3 {[%clk 0:02:59]}  Bxc3+ {[%clk 0:02:40]} 10. Nxc3 {[%clk 0:02:48]}  Qa5 {[%clk 0:02:14]} 11. Qd3 {[%clk 0:02:21]}  Nc6 {[%clk 0:02:11]} 12. dxc5 {[%clk 0:02:16]}  Bd7 {[%clk 0:01:57]} 13. O-O-O {[%clk 0:01:59]}  Nxc3 {[%clk 0:01:46]} 14. Qxc3 {[%clk 0:02:00]}  Qxc3 {[%clk 0:01:45]} 15. bxc3 {[%clk 0:02:01]}  Rc8 {[%clk 0:01:44]} 16. c4 {[%clk 0:01:48]}  dxc4 {[%clk 0:01:34]} 17. Bxc4 {[%clk 0:01:48]}  Na5 {[%clk 0:01:34]} 18. Bb3 {[%clk 0:01:36]}  Rxc5 {[%clk 0:01:32]} 19. Kb2 {[%clk 0:01:35]}  Bc6 {[%clk 0:01:18]} 20. f3 {[%clk 0:01:33]}  Nc4+ {[%clk 0:01:07]} 21. Bxc4 {[%clk 0:01:28]}  Rxc4 {[%clk 0:01:07]} 22. h4 {[%clk 0:01:27]}  g4 {[%clk 0:01:06]} 23. Rd3 {[%clk 0:01:17]}  gxf3 {[%clk 0:00:59]} 24. gxf3 {[%clk 0:01:18]}  Rg8 {[%clk 0:00:59]} 25. Bf2 {[%clk 0:01:16]}  Rg2 {[%clk 0:00:58]} 26. Rf1 {[%clk 0:01:08]}  a6 {[%clk 0:00:45]} 27. Rd4 {[%clk 0:00:50]}  Rxf2 {[%clk 0:00:43]} 0-1


[Site "https://www.chess.com"]

[Event "Titled Tuesday Blitz January 31 Late 2023"]
[White "Toncheva, Nadya"]
[Black "Kalajzic, Ivan"]
[WhiteFideId "2924056"]
[BlackFideId "14506378"]
[WhiteElo "2295"]
[BlackElo "2062"]
[Result "1-0"]
[Round "06"]
[TimeControl "180+2"]
[Date "2023.01.31"]
[WhiteClock "0:00:04"]
[BlackClock "0:00:02"]

1. e4 {[%clk 0:03:00]}  Nc6 {[%clk 0:02:54]} 2. d4 {[%clk 0:02:58]}  d5 {[%clk 0:02:53]} 3. e5 {[%clk 0:02:58]}  f6 {[%clk 0:02:53]} 4. Bd3 {[%clk 0:02:47]}  g6 {[%clk 0:02:37]} 5. Nf3 {[%clk 0:02:41]}  Bg4 {[%clk 0:02:36]} 6. Bb5 {[%clk 0:02:26]}  Qd7 {[%clk 0:02:31]} 7. Nbd2 {[%clk 0:02:15]}  a6 {[%clk 0:02:31]} 8. Bxc6 {[%clk 0:02:14]}  Qxc6 {[%clk 0:02:32]} 9. c3 {[%clk 0:02:09]}  Bg7 {[%clk 0:02:23]} 10. h3 {[%clk 0:02:06]}  Bf5 {[%clk 0:02:13]} 11. Nb3 {[%clk 0:01:57]}  a5 {[%clk 0:01:54]} 12. Bf4 {[%clk 0:01:49]}  a4 {[%clk 0:01:49]} 13. Nc5 {[%clk 0:01:49]}  b6 {[%clk 0:01:44]} 14. Nd3 {[%clk 0:01:46]}  Be4 {[%clk 0:01:28]} 15. O-O {[%clk 0:01:43]}  e6 {[%clk 0:01:16]} 16. exf6 {[%clk 0:01:40]}  Nxf6 {[%clk 0:00:57]} 17. Nb4 {[%clk 0:01:40]}  Qb7 {[%clk 0:00:54]} 18. Ng5 {[%clk 0:01:25]}  Bf5 {[%clk 0:00:51]} 19. Re1 {[%clk 0:01:24]}  O-O {[%clk 0:00:49]} 20. Nxe6 {[%clk 0:01:19]}  Bxe6 {[%clk 0:00:50]} 21. Rxe6 {[%clk 0:01:19]}  Rae8 {[%clk 0:00:48]} 22. Qe2 {[%clk 0:01:14]}  Ne4 {[%clk 0:00:45]} 23. Rxe8 {[%clk 0:01:13]}  Rxe8 {[%clk 0:00:45]} 24. Qb5 {[%clk 0:01:09]}  Rd8 {[%clk 0:00:33]} 25. Nc6 {[%clk 0:00:59]}  Rd7 {[%clk 0:00:23]} 26. Re1 {[%clk 0:00:38]}  Nf6 {[%clk 0:00:23]} 27. Ne7+ {[%clk 0:00:36]}  Kf7 {[%clk 0:00:21]} 28. Nc6 {[%clk 0:00:29]}  Ne4 {[%clk 0:00:17]} 29. f3 {[%clk 0:00:26]}  Nd6 {[%clk 0:00:13]} 30. Bxd6 {[%clk 0:00:25]}  Rxd6 {[%clk 0:00:14]} 31. Ne5+ {[%clk 0:00:18]}  Bxe5 {[%clk 0:00:13]} 32. Rxe5 {[%clk 0:00:19]}  Qc8 {[%clk 0:00:11]} 33. Qxa4 {[%clk 0:00:19]}  Qd7 {[%clk 0:00:11]} 34. Qxd7+ {[%clk 0:00:18]}  Rxd7 {[%clk 0:00:12]} 35. Kf2 {[%clk 0:00:19]}  c5 {[%clk 0:00:12]} 36. Ke3 {[%clk 0:00:19]}  c4 {[%clk 0:00:12]} 37. b3 {[%clk 0:00:18]}  b5 {[%clk 0:00:12]} 38. bxc4 {[%clk 0:00:17]}  bxc4 {[%clk 0:00:13]} 39. f4 {[%clk 0:00:17]}  Kf6 {[%clk 0:00:14]} 40. g4 {[%clk 0:00:17]}  h6 {[%clk 0:00:14]} 41. f5 {[%clk 0:00:16]}  gxf5 {[%clk 0:00:13]} 42. gxf5 {[%clk 0:00:16]}  h5 {[%clk 0:00:13]} 43. Kf4 {[%clk 0:00:16]}  Ra7 {[%clk 0:00:12]} 44. Rxd5 {[%clk 0:00:15]}  Ra3 {[%clk 0:00:12]} 45. Rd6+ {[%clk 0:00:16]}  Ke7 {[%clk 0:00:12]} 46. Rh6 {[%clk 0:00:14]}  Rxc3 {[%clk 0:00:12]} 47. Rxh5 {[%clk 0:00:14]}  Rc1 {[%clk 0:00:12]} 48. Ke5 {[%clk 0:00:13]}  c3 {[%clk 0:00:11]} 49. Rh7+ {[%clk 0:00:12]}  Kf8 {[%clk 0:00:11]} 50. Kf6 {[%clk 0:00:12]}  Kg8 {[%clk 0:00:11]} 51. Rc7 {[%clk 0:00:13]}  c2 {[%clk 0:00:10]} 52. Rc8+ {[%clk 0:00:11]}  Kh7 {[%clk 0:00:10]} 53. a4 {[%clk 0:00:11]}  Ra1 {[%clk 0:00:04]} 54. Rxc2 {[%clk 0:00:10]}  Rxa4 {[%clk 0:00:05]} 55. Rc6 {[%clk 0:00:09]}  Rxd4 {[%clk 0:00:05]} 56. Rc7+ {[%clk 0:00:09]}  Kh8 {[%clk 0:00:04]} 57. Kg6 {[%clk 0:00:08]}  Rd8 {[%clk 0:00:03]} 58. f6 {[%clk 0:00:07]}  Rg8+ {[%clk 0:00:03]} 59. Kh6 {[%clk 0:00:05]}  Rf8 {[%clk 0:00:01]} 60. Rh7+ {[%clk 0:00:05]}  Kg8 {[%clk 0:00:01]} 61. Rg7+ {[%clk 0:00:04]}  Kh8 {[%clk 0:00:02]} 62. Rg6 {[%clk 0:00:04]} 1-0


[Site "https://www.chess.com"]

[Event "Titled Tuesday Blitz January 31 Late 2023"]
[White "Rose, Felix"]
[Black "Marczuk, Dominik"]
[WhiteFideId "5105722"]
[BlackFideId "1111264"]
[WhiteElo "2091"]
[BlackElo "2253"]
[Result "0-1"]
[Round "06"]
[TimeControl "180+2"]
[Date "2023.01.31"]
[WhiteClock "0:00:25"]
[BlackClock "0:00:08"]

1. d4 {[%clk 0:03:00]}  Nf6 {[%clk 0:02:59]} 2. Nf3 {[%clk 0:03:00]}  g6 {[%clk 0:02:59]} 3. Bg5 {[%clk 0:02:58]}  Bg7 {[%clk 0:02:59]} 4. Nbd2 {[%clk 0:02:57]}  d5 {[%clk 0:02:57]} 5. e3 {[%clk 0:02:49]}  O-O {[%clk 0:02:56]} 6. Bd3 {[%clk 0:02:49]}  c5 {[%clk 0:02:53]} 7. dxc5 {[%clk 0:02:46]}  Nbd7 {[%clk 0:02:49]} 8. Nb3 {[%clk 0:02:40]}  Qc7 {[%clk 0:02:47]} 9. O-O {[%clk 0:02:39]}  Nxc5 {[%clk 0:02:40]} 10. Nxc5 {[%clk 0:02:34]}  Qxc5 {[%clk 0:02:40]} 11. Rc1 {[%clk 0:02:30]}  h6 {[%clk 0:02:20]} 12. Bh4 {[%clk 0:02:19]}  Ne4 {[%clk 0:02:17]} 13. c4 {[%clk 0:01:33]}  g5 {[%clk 0:01:23]} 14. cxd5 {[%clk 0:01:29]}  Qxd5 {[%clk 0:01:20]} 15. Bxe4 {[%clk 0:01:12]}  Qxe4 {[%clk 0:01:18]} 16. Bg3 {[%clk 0:01:10]}  Bxb2 {[%clk 0:01:16]} 17. Rc7 {[%clk 0:00:58]}  Bg4 {[%clk 0:01:09]} 18. Qb3 {[%clk 0:00:54]}  Bf6 {[%clk 0:01:05]} 19. Qxb7 {[%clk 0:00:50]}  Qxb7 {[%clk 0:00:41]} 20. Rxb7 {[%clk 0:00:50]}  Rfc8 {[%clk 0:00:39]} 21. Ne5 {[%clk 0:00:48]}  Be6 {[%clk 0:00:37]} 22. a4 {[%clk 0:00:44]}  Rc5 {[%clk 0:00:32]} 23. f4 {[%clk 0:00:44]}  Ra5 {[%clk 0:00:27]} 24. Rb4 {[%clk 0:00:33]}  Rc8 {[%clk 0:00:24]} 25. Nf3 {[%clk 0:00:23]}  Bd5 {[%clk 0:00:20]} 26. fxg5 {[%clk 0:00:22]}  hxg5 {[%clk 0:00:20]} 27. Nd4 {[%clk 0:00:21]}  Rc3 {[%clk 0:00:16]} 28. Nb5 {[%clk 0:00:21]}  Rxe3 {[%clk 0:00:14]} 29. Bf2 {[%clk 0:00:21]}  Re2 {[%clk 0:00:13]} 30. Re1 {[%clk 0:00:21]}  Rxe1+ {[%clk 0:00:06]} 31. Bxe1 {[%clk 0:00:22]}  Ra6 {[%clk 0:00:06]} 32. Bf2 {[%clk 0:00:22]}  Rc6 {[%clk 0:00:05]} 33. Bxa7 {[%clk 0:00:21]}  Rc1+ {[%clk 0:00:04]} 34. Kf2 {[%clk 0:00:21]}  Rc2+ {[%clk 0:00:01]} 35. Ke3 {[%clk 0:00:21]}  Rxg2 {[%clk 0:00:02]} 36. Nc7 {[%clk 0:00:21]}  Bc6 {[%clk 0:00:02]} 37. a5 {[%clk 0:00:21]}  g4 {[%clk 0:00:03]} 38. Kf4 {[%clk 0:00:19]}  Kg7 {[%clk 0:00:02]} 39. Bd4 {[%clk 0:00:17]}  Kg6 {[%clk 0:00:02]} 40. Bxf6 {[%clk 0:00:18]}  Kxf6 {[%clk 0:00:02]} 41. a6 {[%clk 0:00:18]}  e5+ {[%clk 0:00:03]} 42. Ke3 {[%clk 0:00:18]}  Rxh2 {[%clk 0:00:03]} 43. a7 {[%clk 0:00:18]}  Ra2 {[%clk 0:00:03]} 44. Rb6 {[%clk 0:00:19]}  Rxa7 {[%clk 0:00:03]} 45. Rxc6+ {[%clk 0:00:19]}  Kf5 {[%clk 0:00:04]} 46. Nd5 {[%clk 0:00:20]}  Ra3+ {[%clk 0:00:04]} 47. Kf2 {[%clk 0:00:20]}  Ke4 {[%clk 0:00:04]} 48. Nf6+ {[%clk 0:00:20]}  Kf4 {[%clk 0:00:05]} 49. Nh5+ {[%clk 0:00:20]}  Kg5 {[%clk 0:00:05]} 50. Ng3 {[%clk 0:00:20]}  f5 {[%clk 0:00:05]} 51. Rc8 {[%clk 0:00:20]}  Kf4 {[%clk 0:00:05]} 52. Nh5+ {[%clk 0:00:20]}  Ke4 {[%clk 0:00:05]} 53. Rc4+ {[%clk 0:00:20]}  Kd5 {[%clk 0:00:05]} 54. Rb4 {[%clk 0:00:20]}  f4 {[%clk 0:00:06]} 55. Nf6+ {[%clk 0:00:19]}  Ke6 {[%clk 0:00:06]} 56. Nxg4 {[%clk 0:00:20]}  Kf5 {[%clk 0:00:06]} 57. Nh6+ {[%clk 0:00:20]}  Kg6 {[%clk 0:00:06]} 58. Rb6+ {[%clk 0:00:21]}  Kg5 {[%clk 0:00:06]} 59. Nf7+ {[%clk 0:00:20]}  Kf5 {[%clk 0:00:06]} 60. Rb5 {[%clk 0:00:20]}  Re3 {[%clk 0:00:05]} 61. Nxe5 {[%clk 0:00:20]}  Rxe5 {[%clk 0:00:05]} 62. Rb8 {[%clk 0:00:20]}  Ra5 {[%clk 0:00:04]} 63. Rb2 {[%clk 0:00:20]}  Kg4 {[%clk 0:00:05]} 64. Rb3 {[%clk 0:00:20]}  Ra2+ {[%clk 0:00:05]} 65. Kf1 {[%clk 0:00:21]}  Rc2 {[%clk 0:00:05]} 66. Kg1 {[%clk 0:00:20]}  Kf5 {[%clk 0:00:05]} 67. Kf1 {[%clk 0:00:21]}  Ke4 {[%clk 0:00:06]} 68. Ke1 {[%clk 0:00:21]}  Rh2 {[%clk 0:00:06]} 69. Kf1 {[%clk 0:00:22]}  Rh5 {[%clk 0:00:06]} 70. Kg1 {[%clk 0:00:21]}  Rd5 {[%clk 0:00:07]} 71. Kf1 {[%clk 0:00:22]}  Rd1+ {[%clk 0:00:07]} 72. Kf2 {[%clk 0:00:22]}  Rd2+ {[%clk 0:00:08]} 73. Kf1 {[%clk 0:00:23]}  Rc2 {[%clk 0:00:07]} 74. Ke1 {[%clk 0:00:23]}  Kd4 {[%clk 0:00:08]} 75. Kf1 {[%clk 0:00:23]}  Ke5 {[%clk 0:00:08]} 76. Ke1 {[%clk 0:00:24]}  Kf5 {[%clk 0:00:08]} 77. Kf1 {[%clk 0:00:24]}  Kg4 {[%clk 0:00:09]} 78. Ke1 {[%clk 0:00:25]}  Rg2 {[%clk 0:00:09]} 79. Kf1 {[%clk 0:00:25]}  Rg3 {[%clk 0:00:07]} 80. Rb8 {[%clk 0:00:25]}  Ra3 {[%clk 0:00:07]} 81. Rb3 {[%clk 0:00:25]}  Rxb3 {[%clk 0:00:07]} 82. Kg2 {[%clk 0:00:25]}  Rb2+ {[%clk 0:00:07]} 83. Kh1 {[%clk 0:00:25]}  Kg3 {[%clk 0:00:07]} 84. Kg1 {[%clk 0:00:25]}  Rb1# {[%clk 0:00:08]} 0-1


[Site "https://www.chess.com"]

[Event "Titled Tuesday Blitz January 31 Late 2023"]
[White "Bouget, Alexandre"]
[Black "Gardezi, Arsal"]
[WhiteFideId "681318"]
[BlackFideId "30949521"]
[WhiteElo "2267"]
[BlackElo "2093"]
[Result "1-0"]
[Round "06"]
[TimeControl "180+2"]
[Date "2023.01.31"]
[WhiteClock "0:02:22"]
[BlackClock "0:01:48"]

1. d4 {[%clk 0:03:00]}  Nf6 {[%clk 0:02:56]} 2. c4 {[%clk 0:02:58]}  e6 {[%clk 0:02:57]} 3. Nc3 {[%clk 0:02:57]}  d5 {[%clk 0:02:58]} 4. Nf3 {[%clk 0:02:55]}  Be7 {[%clk 0:02:58]} 5. Bf4 {[%clk 0:02:51]}  O-O {[%clk 0:02:52]} 6. e3 {[%clk 0:02:50]}  b6 {[%clk 0:02:53]} 7. cxd5 {[%clk 0:02:48]}  exd5 {[%clk 0:02:52]} 8. Bd3 {[%clk 0:02:47]}  Bb7 {[%clk 0:02:53]} 9. Qc2 {[%clk 0:02:44]}  Nbd7 {[%clk 0:02:52]} 10. Ne5 {[%clk 0:02:43]}  c5 {[%clk 0:02:49]} 11. O-O {[%clk 0:02:39]}  Rc8 {[%clk 0:02:38]} 12. Bf5 {[%clk 0:02:38]}  g6 {[%clk 0:02:28]} 13. Bh3 {[%clk 0:02:35]}  Re8 {[%clk 0:02:04]} 14. Qa4 {[%clk 0:02:33]}  a6 {[%clk 0:01:55]} 15. Nxd7 {[%clk 0:02:30]}  b5 {[%clk 0:01:49]} 16. Nxf6+ {[%clk 0:02:27]}  Bxf6 {[%clk 0:01:50]} 17. Qd1 {[%clk 0:02:25]}  Rc7 {[%clk 0:01:48]} 18. Bxc7 {[%clk 0:02:22]} 1-0


[Site "https://www.chess.com"]

[Event "Titled Tuesday Blitz January 31 Late 2023"]
[White "Llanos, Guillermo"]
[Black "Floresvillar Gonzalez, Luis Migu"]
[WhiteFideId "100358"]
[BlackFideId "5100542"]
[WhiteElo "2290"]
[BlackElo "2043"]
[Result "1-0"]
[Round "06"]
[TimeControl "180+2"]
[Date "2023.01.31"]
[WhiteClock "0:00:55"]
[BlackClock "0:00:02"]

1. Nf3 {[%clk 0:02:59]}  d5 {[%clk 0:02:59]} 2. e3 {[%clk 0:02:59]}  c6 {[%clk 0:02:59]} 3. c4 {[%clk 0:02:58]}  Bg4 {[%clk 0:02:59]} 4. Nc3 {[%clk 0:02:57]}  e6 {[%clk 0:02:59]} 5. h3 {[%clk 0:02:56]}  Bxf3 {[%clk 0:02:59]} 6. Qxf3 {[%clk 0:02:54]}  Bd6 {[%clk 0:02:58]} 7. d4 {[%clk 0:02:54]}  f5 {[%clk 0:02:51]} 8. g4 {[%clk 0:02:50]}  Ne7 {[%clk 0:02:43]} 9. gxf5 {[%clk 0:02:44]}  Nxf5 {[%clk 0:02:42]} 10. cxd5 {[%clk 0:02:39]}  O-O {[%clk 0:02:37]} 11. dxe6 {[%clk 0:02:24]}  Nxd4 {[%clk 0:02:33]} 12. Qe4 {[%clk 0:02:19]}  Nf3+ {[%clk 0:02:16]} 13. Kd1 {[%clk 0:02:16]}  Qe7 {[%clk 0:02:11]} 14. h4 {[%clk 0:02:08]}  Na6 {[%clk 0:02:05]} 15. Bd3 {[%clk 0:01:59]}  g6 {[%clk 0:01:54]} 16. Be2 {[%clk 0:01:50]}  Nc5 {[%clk 0:01:51]} 17. Qg4 {[%clk 0:01:49]}  Ne5 {[%clk 0:01:47]} 18. Qg5 {[%clk 0:01:47]}  Rxf2 {[%clk 0:01:23]} 19. Qxe7 {[%clk 0:01:43]}  Bxe7 {[%clk 0:01:22]} 20. e4 {[%clk 0:01:38]}  Nxe6 {[%clk 0:01:18]} 21. Be3 {[%clk 0:01:38]}  Rd8+ {[%clk 0:01:08]} 22. Kc2 {[%clk 0:01:36]}  Nd4+ {[%clk 0:00:56]} 23. Bxd4 {[%clk 0:01:29]}  Rxd4 {[%clk 0:00:55]} 24. Raf1 {[%clk 0:01:29]}  Rg2 {[%clk 0:00:35]} 25. h5 {[%clk 0:01:27]}  Nc4 {[%clk 0:00:28]} 26. hxg6 {[%clk 0:01:14]}  Rd2+ {[%clk 0:00:20]} 27. Kb3 {[%clk 0:01:06]}  Rgxe2 {[%clk 0:00:14]} 28. Nxe2 {[%clk 0:01:02]}  Rxb2+ {[%clk 0:00:14]} 29. Kxc4 {[%clk 0:01:02]}  Rxe2 {[%clk 0:00:14]} 30. gxh7+ {[%clk 0:01:00]}  Kh8 {[%clk 0:00:15]} 31. Rfg1 {[%clk 0:00:57]}  Rxe4+ {[%clk 0:00:14]} 32. Kd3 {[%clk 0:00:57]}  Bg5 {[%clk 0:00:02]} 33. Rxg5 {[%clk 0:00:55]} 1-0


[Site "https://www.chess.com"]

[Event "Titled Tuesday Blitz January 31 Late 2023"]
[White "Torres Dominguez, David"]
[Black "Hoffmann, Asa"]
[WhiteFideId "2220857"]
[BlackFideId "2001470"]
[WhiteElo "1994"]
[BlackElo "2185"]
[Result "1-0"]
[Round "06"]
[TimeControl "180+2"]
[Date "2023.01.31"]
[WhiteClock "0:00:27"]
[BlackClock "0:01:38"]

1. e4 {[%clk 0:02:50]}  d6 {[%clk 0:02:59]} 2. Nc3 {[%clk 0:02:49]}  Nf6 {[%clk 0:02:59]} 3. f4 {[%clk 0:02:50]}  c6 {[%clk 0:02:58]} 4. Nf3 {[%clk 0:02:49]}  Bg4 {[%clk 0:02:58]} 5. Be2 {[%clk 0:02:49]}  e6 {[%clk 0:02:58]} 6. O-O {[%clk 0:02:49]}  d5 {[%clk 0:02:58]} 7. d3 {[%clk 0:02:49]}  dxe4 {[%clk 0:02:57]} 8. dxe4 {[%clk 0:02:49]}  Bc5+ {[%clk 0:02:56]} 9. Kh1 {[%clk 0:02:48]}  Qxd1 {[%clk 0:02:55]} 10. Rxd1 {[%clk 0:02:46]}  Nbd7 {[%clk 0:02:55]} 11. a3 {[%clk 0:02:46]}  O-O-O {[%clk 0:02:54]} 12. e5 {[%clk 0:02:42]}  Nd5 {[%clk 0:02:53]} 13. Ne4 {[%clk 0:02:41]}  Be7 {[%clk 0:02:47]} 14. c4 {[%clk 0:02:38]}  N5b6 {[%clk 0:02:46]} 15. Be3 {[%clk 0:02:38]}  Bxf3 {[%clk 0:02:40]} 16. gxf3 {[%clk 0:02:30]}  g6 {[%clk 0:02:38]} 17. b4 {[%clk 0:02:27]}  c5 {[%clk 0:02:30]} 18. bxc5 {[%clk 0:02:21]}  Na4 {[%clk 0:02:29]} 19. Nd6+ {[%clk 0:02:21]}  Bxd6 {[%clk 0:02:29]} 20. cxd6 {[%clk 0:02:21]}  Nc3 {[%clk 0:02:21]} 21. Rd2 {[%clk 0:02:12]}  Nxe2 {[%clk 0:02:21]} 22. Rxe2 {[%clk 0:02:12]}  b6 {[%clk 0:02:20]} 23. c5 {[%clk 0:02:10]}  bxc5 {[%clk 0:02:17]} 24. Rc2 {[%clk 0:02:06]}  Kb7 {[%clk 0:02:17]} 25. Rb1+ {[%clk 0:02:06]}  Ka6 {[%clk 0:02:12]} 26. Bf2 {[%clk 0:01:33]}  Rb8 {[%clk 0:02:08]} 27. Rbc1 {[%clk 0:01:33]}  Rb3 {[%clk 0:02:07]} 28. Bxc5 {[%clk 0:01:31]}  Rxf3 {[%clk 0:02:06]} 29. Bb4 {[%clk 0:01:20]}  Rxf4 {[%clk 0:02:04]} 30. Rc6+ {[%clk 0:01:17]}  Kb5 {[%clk 0:02:02]} 31. Rc7 {[%clk 0:00:55]}  Nxe5 {[%clk 0:01:56]} 32. Rxa7 {[%clk 0:00:55]}  Nd3 {[%clk 0:01:51]} 33. Rb1 {[%clk 0:00:41]}  Nxb4 {[%clk 0:01:48]} 34. axb4 {[%clk 0:00:32]}  Rd8 {[%clk 0:01:46]} 35. d7 {[%clk 0:00:30]}  Rxb4 {[%clk 0:01:45]} 36. Rb7+ {[%clk 0:00:29]}  Kc6 {[%clk 0:01:42]} 37. R1xb4 {[%clk 0:00:29]}  Rxd7 {[%clk 0:01:41]} 38. Rxd7 {[%clk 0:00:28]}  Kxd7 {[%clk 0:01:41]} 39. Kg2 {[%clk 0:00:28]}  h5 {[%clk 0:01:39]} 40. Kf3 {[%clk 0:00:28]}  f5 {[%clk 0:01:39]} 41. h4 {[%clk 0:00:28]}  e5 {[%clk 0:01:38]} 42. Rb6 {[%clk 0:00:28]}  e4+ {[%clk 0:01:38]} 43. Kf4 {[%clk 0:00:27]} 1-0


[Site "https://www.chess.com"]

[Event "Titled Tuesday Blitz January 31 Late 2023"]
[White "Aung Thant Zin"]
[Black "Pino Perez, Lazaro"]
[WhiteFideId "13000063"]
[BlackFideId "3517055"]
[WhiteElo "2268"]
[BlackElo "2142"]
[Result "1-0"]
[Round "06"]
[TimeControl "180+2"]
[Date "2023.01.31"]
[WhiteClock "0:00:12"]
[BlackClock "0:00:05"]

1. e4 {[%clk 0:02:57]}  c5 {[%clk 0:03:00]} 2. Nf3 {[%clk 0:02:57]}  g6 {[%clk 0:03:00]} 3. d4 {[%clk 0:02:57]}  cxd4 {[%clk 0:03:01]} 4. Nxd4 {[%clk 0:02:58]}  Nc6 {[%clk 0:03:01]} 5. Nc3 {[%clk 0:02:55]}  Bg7 {[%clk 0:03:01]} 6. Be3 {[%clk 0:02:55]}  Nf6 {[%clk 0:03:02]} 7. Nb3 {[%clk 0:02:45]}  O-O {[%clk 0:03:02]} 8. Be2 {[%clk 0:02:45]}  a5 {[%clk 0:03:01]} 9. a4 {[%clk 0:02:43]}  d6 {[%clk 0:03:01]} 10. O-O {[%clk 0:02:41]}  Be6 {[%clk 0:03:00]} 11. Nd4 {[%clk 0:02:41]}  Bd7 {[%clk 0:02:57]} 12. f4 {[%clk 0:02:37]}  e5 {[%clk 0:02:31]} 13. Ndb5 {[%clk 0:02:30]}  exf4 {[%clk 0:01:39]} 14. Bxf4 {[%clk 0:02:29]}  Nb4 {[%clk 0:01:22]} 15. Bxd6 {[%clk 0:02:22]}  Re8 {[%clk 0:01:21]} 16. e5 {[%clk 0:02:14]}  Bxb5 {[%clk 0:01:00]} 17. axb5 {[%clk 0:02:14]}  Nd7 {[%clk 0:01:00]} 18. Bc4 {[%clk 0:01:59]}  Nxe5 {[%clk 0:00:52]} 19. Bxe5 {[%clk 0:01:56]}  Rxe5 {[%clk 0:00:53]} 20. Rxf7 {[%clk 0:01:49]}  Kh8 {[%clk 0:00:52]} 21. Qxd8+ {[%clk 0:01:11]}  Rxd8 {[%clk 0:00:53]} 22. Bb3 {[%clk 0:01:07]}  b6 {[%clk 0:00:46]} 23. Na4 {[%clk 0:00:46]}  Re2 {[%clk 0:00:37]} 24. c3 {[%clk 0:00:32]}  Rdd2 {[%clk 0:00:26]} 25. cxb4 {[%clk 0:00:31]}  Rxg2+ {[%clk 0:00:26]} 26. Kf1 {[%clk 0:00:31]}  Rxh2 {[%clk 0:00:26]} 27. Ke1 {[%clk 0:00:24]}  Rhe2+ {[%clk 0:00:23]} 28. Kf1 {[%clk 0:00:24]}  Rh2 {[%clk 0:00:24]} 29. Ke1 {[%clk 0:00:24]}  Bh6 {[%clk 0:00:18]} 30. Rd1 {[%clk 0:00:16]}  Rhe2+ {[%clk 0:00:17]} 31. Kf1 {[%clk 0:00:16]}  axb4 {[%clk 0:00:09]} 32. Rxd2 {[%clk 0:00:16]}  Rxd2 {[%clk 0:00:10]} 33. Rb7 {[%clk 0:00:15]}  Rd4 {[%clk 0:00:09]} 34. Nxb6 {[%clk 0:00:14]}  Rd3 {[%clk 0:00:09]} 35. Bc4 {[%clk 0:00:13]}  Rd2 {[%clk 0:00:08]} 36. b3 {[%clk 0:00:13]}  Be3 {[%clk 0:00:07]} 37. Nd5 {[%clk 0:00:13]}  Bc5 {[%clk 0:00:05]} 38. Nf6 {[%clk 0:00:12]} 1-0


[Site "https://www.chess.com"]